fUST/lending_fUST_20250702
["ID","MTS","AMOUNT","RATE_DAILY","PERIOD"]
[368940438,1751400639209,-460.0,0.00017294,2]
[368940439,1751400639219,-460.0,0.00017294,2]
[368940440,1751400639229,-460.0,0.00017294,2]
[368940441,1751400639239,-460.0,0.00017294,2]
[368940442,1751400639249,-460.0,0.00017294,2]
[368940443,1751400639258,-460.0,0.00017294,2]
[368940444,1751400639268,-506.81048945,0.00017295,2]
[368940445,1751400639277,-460.0,0.00017295,2]
[368940446,1751400639286,-460.0,0.00017295,2]
[368940447,1751400639296,-477.43,0.00017295,2]
[368940448,1751400639306,-460.0,0.00017295,2]
[368940449,1751400639315,-460.0,0.00017295,2]
[368940450,1751400639324,-460.0,0.00017295,2]
[368940451,1751400639333,-460.0,0.00017295,2]
[368940452,1751400639343,-460.0,0.00017295,2]
[368940453,1751400639352,-460.0,0.00017295,2]
[368940454,1751400639361,-460.0,0.00017295,2]
[368940455,1751400639370,-460.0,0.00017295,2]
[368940456,1751400639379,-460.0,0.00017295,2]
[368940457,1751400639389,-460.0,0.00017295,2]
[368940458,1751400639398,-460.0,0.00017295,2]
[368940459,1751400639408,-184.40470766,0.00017295,2]
[368940460,1751400639419,-500.0,0.00017295,2]
[368940461,1751400639428,-320.10204927,0.00017295,2]
[368940462,1751400639437,-500.0,0.00017295,2]
[368940463,1751400639447,-194.61652673,0.00017295,2]
[368940464,1751400639456,-500.0,0.00017295,2]
[368940465,1751400639465,-581.91272223,0.00017295,2]
[368940466,1751400639475,-460.0,0.00017295,2]
[368940467,1751400639484,-460.0,0.00017295,2]
[368940468,1751400639494,-460.0,0.00017295,2]
[368940469,1751400639503,-460.0,0.00017295,2]
[368940470,1751400639513,-500.0,0.00017295,2]
[368940471,1751400639522,-460.0,0.00017295,2]
[368940472,1751400639532,-460.0,0.00017295,2]
[368940473,1751400639541,-460.0,0.00017295,2]
[368940474,1751400639551,-460.0,0.00017295,2]
[368940475,1751400639560,-460.0,0.00017296,2]
[368940476,1751400639573,-460.0,0.00017296,2]
[368940477,1751400639582,-460.0,0.00017296,2]
[368940478,1751400639592,-597.05946755,0.00017296,2]
[368940479,1751400639601,-460.0,0.00017296,2]
[368940480,1751400639611,-460.0,0.00017296,2]
[368940481,1751400639621,-319.81666574,0.00017296,2]
[368940482,1751400639630,-460.0,0.00017296,2]
[368940483,1751400639640,-460.0,0.00017296,2]
[368940484,1751400639650,-460.0,0.00017296,2]
[368940485,1751400639659,-460.0,0.00017296,2]
[368940486,1751400639669,-460.0,0.00017296,2]
[368940487,1751400639678,-460.0,0.00017296,2]
[368940488,1751400639687,-460.0,0.00017296,2]
[368940489,1751400639696,-321.55554434,0.00017296,2]
[368940490,1751400639706,-460.55910742,0.00017296,2]
[368940491,1751400639715,-460.0,0.00017296,2]
[368940492,1751400639725,-437.54907532,0.00017296,2]
[368940493,1751400639734,-460.0,0.00017296,2]
[368940494,1751400639744,-460.0,0.00017296,2]
[368940496,1751400639753,-460.0,0.00017296,2]
[368940497,1751400639763,-460.0,0.00017296,2]
[368940498,1751400639772,-460.0,0.00017296,2]
[368940499,1751400639781,-460.0,0.00017296,2]
[368940500,1751400639791,-460.0,0.00017296,2]
[368940502,1751400639800,-351.52281316,0.00017296,2]
[368940503,1751400639810,-460.0,0.00017296,2]
[368940505,1751400639819,-460.0,0.00017296,2]
[368940507,1751400639828,-460.0,0.00017296,2]
[368940509,1751400639838,-460.0,0.00017296,2]
[368940511,1751400639848,-460.0,0.00017296,2]
[368940513,1751400639858,-460.0,0.00017296,2]
[368940514,1751400639871,-460.0,0.00017296,2]
[368940515,1751400639881,-460.0,0.00017296,2]
[368940516,1751400639890,-460.0,0.00017296,2]
[368940517,1751400639900,-460.0,0.00017296,2]
[368940518,1751400639912,-460.0,0.00017296,2]
[368940519,1751400639921,-460.0,0.00017296,2]
[368940520,1751400639931,-460.0,0.00017296,2]
[368940521,1751400639940,-460.0,0.00017296,2]
[368940522,1751400639950,-572.89420888,0.00017296,2]
[368940523,1751400639959,-460.0,0.00017296,2]
[368940524,1751400639969,-460.0,0.00017296,2]
[368940525,1751400639979,-378.67918437,0.00017296,2]
[368940526,1751400640027,-81.32081563,0.00017296,2]
[368940527,1751400640037,-400.21602134,0.00017296,2]
[368940528,1751400640047,-460.0,0.00017296,2]
[368940529,1751400640056,-554.99,0.00017296,2]
[368940530,1751400640067,-497.74,0.00017296,2]
[368940533,1751400640076,-460.0,0.00017296,2]
[368940536,1751400640086,-460.0,0.00017296,2]
[368940539,1751400640096,-460.0,0.00017296,2]
[368940542,1751400640106,-460.0,0.00017296,2]
[368940544,1751400640115,-460.0,0.00017296,2]
[368940546,1751400640125,-460.0,0.00017296,2]
[368940548,1751400640135,-460.0,0.00017296,2]
[368940550,1751400640144,-237.51666308,0.00017296,2]
[368940553,1751400640156,-222.48333692,0.00017296,2]
[368940555,1751400640167,-460.0,0.00017296,2]
[368940557,1751400640177,-460.0,0.00017296,2]
[368940560,1751400640186,-460.0,0.00017298,2]
[368940563,1751400640195,-460.0,0.00017298,2]
[368940566,1751400640205,-460.0,0.00017298,2]
[368940568,1751400640215,-460.0,0.00017298,2]
[368940571,1751400640225,-460.0,0.00017298,2]
[368940574,1751400640235,-460.0,0.00017298,2]
[368940579,1751400640244,-977.5,0.00017298,2]
[368940581,1751400640254,-460.0,0.00017298,2]
[368940583,1751400640263,-419.05928685,0.00017298,2]
[368940586,1751400640273,-460.0,0.00017299,2]
[368940591,1751400640283,-464.87007818,0.00017299,2]
[368940593,1751400640292,-460.0,0.00017299,2]
[368940595,1751400640301,-460.0,0.00017299,2]
[368940597,1751400640311,-460.0,0.00017299,2]
[368940599,1751400640320,-282.88783647,0.00017299,2]
[368940602,1751400640329,-460.0,0.00017299,2]
[368940604,1751400640339,-489.00575379,0.00017299,2]
[368940608,1751400640348,-460.0,0.00017299,2]
[368940610,1751400640358,-460.0,0.00017299,2]
[368940614,1751400640367,-460.0,0.00017299,2]
[368940615,1751400640377,-460.0,0.00017299,2]
[368940618,1751400640386,-460.0,0.00017299,2]
[368940621,1751400640395,-460.0,0.00017299,2]
[368940624,1751400640405,-460.0,0.00017299,2]
[368940627,1751400640416,-229.77131047,0.00017299,2]
[368940631,1751400640425,-460.0,0.00017299,2]
[368940633,1751400640435,-460.0,0.00017299,2]
[368940635,1751400640444,-460.0,0.00017299,2]
[368940637,1751400640454,-460.0,0.00017299,2]
[368940639,1751400640464,-460.0,0.00017299,2]
[368940642,1751400640474,-460.0,0.00017299,2]
[368940645,1751400640483,-460.0,0.00017299,2]
[368940648,1751400640494,-460.0,0.00017299,2]
[368940651,1751400640504,-460.0,0.00017299,2]
[368940654,1751400640513,-460.0,0.00017299,2]
[368940657,1751400640527,-460.0,0.00017299,2]
[368940661,1751400640537,-331.75850511,0.00017299,2]
[368940664,1751400640547,-460.0,0.00017567,2]
[368940667,1751400640558,-460.0,0.00017567,2]
[368940669,1751400640568,-246.73197157,0.00017567,2]
[368940672,1751400640578,-460.0,0.00017567,2]
[368940674,1751400640588,-460.0,0.00017567,2]
[368940677,1751400640598,-460.0,0.00017567,2]
[368940680,1751400640607,-460.0,0.00017568,2]
[368940682,1751400640618,-460.0,0.00017568,2]
[368940685,1751400640628,-460.0,0.00017568,2]
[368940687,1751400640639,-460.0,0.00017568,2]
[368940690,1751400640649,-460.0,0.00017568,2]
[368940693,1751400640659,-460.0,0.00017568,2]
[368940695,1751400640671,-460.0,0.00017568,2]
[368940697,1751400640681,-460.0,0.00017568,2]
[368940700,1751400640690,-460.0,0.00017569,2]
[368940703,1751400640698,-477.43,0.00017569,2]
[368940705,1751400640708,-460.0,0.00017569,2]
[368940708,1751400640717,-460.0,0.00017569,2]
[368940710,1751400640727,-460.0,0.00017569,2]
[368940713,1751400640736,-460.0,0.00017569,2]
[368940715,1751400640746,-460.0,0.00017569,2]
[368940718,1751400640756,-378.66985164,0.00017569,2]
[368940721,1751400640765,-474.62,0.00017569,2]
[368940723,1751400640776,-565.1,0.00017569,2]
[368940726,1751400640785,-573.84,0.00017569,2]
[368940729,1751400640795,-460.0,0.00017569,2]
[368940731,1751400640804,-460.0,0.00017569,2]
[368940734,1751400640813,-460.0,0.00017569,2]
[368940736,1751400640823,-460.0,0.00017569,2]
[368940739,1751400640832,-460.0,0.00017569,2]
[368940741,1751400640841,-460.0,0.00017569,2]
[368940744,1751400640851,-460.0,0.0001757,2]
[368940747,1751400640863,-460.0,0.0001757,2]
[368940750,1751400640873,-460.0,0.0001757,2]
[368940752,1751400640883,-460.0,0.0001757,2]
[368940755,1751400640892,-460.0,0.0001757,2]
[368940757,1751400640902,-460.0,0.0001757,2]
[368940760,1751400640913,-460.0,0.0001757,2]
[368940763,1751400640922,-460.0,0.0001757,2]
[368940765,1751400640931,-460.0,0.0001757,2]
[368940768,1751400640942,-460.0,0.0001757,2]
[368940771,1751400640952,-460.0,0.0001757,2]
[368940773,1751400640962,-460.0,0.0001757,2]
[368940776,1751400640972,-460.0,0.0001757,2]
[368940778,1751400640982,-460.0,0.0001757,2]
[368940779,1751400640992,-460.0,0.0001757,2]
[368940782,1751400641002,-460.0,0.0001757,2]
[368940785,1751400641011,-460.0,0.0001757,2]
[368940787,1751400641020,-460.0,0.0001757,2]
[368940789,1751400641030,-554.99,0.0001757,2]
[368940791,1751400641039,-460.0,0.0001757,2]
[368940793,1751400641048,-460.0,0.0001757,2]
[368940795,1751400641057,-460.0,0.0001757,2]
[368940797,1751400641067,-460.0,0.0001757,2]
[368940799,1751400641077,-460.0,0.0001757,2]
[368940801,1751400641086,-460.0,0.0001757,2]
[368940803,1751400641095,-460.0,0.0001757,2]
[368940805,1751400641105,-460.0,0.0001757,2]
[368940807,1751400641114,-460.0,0.0001757,2]
[368940809,1751400641123,-460.0,0.00017572,2]
[368940811,1751400641133,-460.0,0.00017572,2]
[368940813,1751400641143,-460.0,0.00017572,2]
[368940815,1751400641152,-460.0,0.00017572,2]
[368940817,1751400641163,-977.5,0.00017572,2]
[368940819,1751400641172,-460.0,0.00017572,2]
[368940821,1751400641182,-500.0,0.00017573,2]
[368940823,1751400641191,-500.0,0.00017573,2]
[368940825,1751400641200,-460.0,0.00017573,2]
[368940827,1751400641210,-460.0,0.00017573,2]
[368940829,1751400641219,-460.0,0.00017573,2]
[368940831,1751400641228,-460.0,0.00017573,2]
[368940833,1751400641238,-460.0,0.00017573,2]
[368940835,1751400641247,-460.0,0.00017573,2]
[368940837,1751400641257,-460.0,0.00017573,2]
[368940839,1751400641267,-460.0,0.00017573,2]
[368940841,1751400641276,-501.60650309,0.00017784,2]
[368940843,1751400641288,-460.0,0.00017841,2]
[368940845,1751400641297,-460.0,0.00017841,2]
[368940847,1751400641307,-460.0,0.00017841,2]
[368940849,1751400641317,-460.0,0.00017842,2]
[368940852,1751400641326,-486.91,0.00017842,2]
[368940854,1751400641336,-460.0,0.00017842,2]
[368940856,1751400641346,-460.0,0.00017842,2]
[368940858,1751400641355,-460.0,0.00017842,2]
[368940860,1751400641365,-460.0,0.00017842,2]
[368940862,1751400641374,-368.43617697,0.00017842,2]
[368940864,1751400641383,-460.0,0.00017843,2]
[368940866,1751400641394,-477.43,0.00017843,2]
[368940868,1751400641403,-460.0,0.00017843,2]
[368940870,1751400641414,-460.0,0.00017843,2]
[368940872,1751400641423,-460.0,0.00017843,2]
[368940874,1751400641432,-460.0,0.00017843,2]
[368940876,1751400641442,-460.0,0.00017843,2]
[368940878,1751400641452,-460.0,0.00017843,2]
[368940880,1751400641461,-460.0,0.00017843,2]
[368940882,1751400641471,-467.85692387,0.00017843,2]
[368940883,1751400641480,-460.0,0.00017844,2]
[368940884,1751400641489,-460.0,0.00017844,2]
[368940885,1751400641499,-269.74,0.00017844,2]
[368940886,1751400641508,-403.16,0.00017844,2]
[368940887,1751400641517,-460.0,0.00017844,2]
[368940888,1751400641526,-554.99,0.00017844,2]
[368940889,1751400641535,-460.0,0.00017844,2]
[368940890,1751400641544,-460.0,0.00017844,2]
[368940891,1751400641553,-460.0,0.00017844,2]
[368940892,1751400641563,-460.0,0.00017844,2]
[368940893,1751400641572,-460.0,0.00017844,2]
[368940894,1751400641582,-477.28,0.00017844,2]
[368940895,1751400641591,-460.0,0.00017844,2]
[368940896,1751400641600,-460.0,0.00017846,2]
[368940897,1751400641609,-359.32,0.00017846,2]
[368940898,1751400641619,-460.0,0.00017846,2]
[368940899,1751400641628,-977.5,0.00017846,2]
[368940900,1751400641637,-460.0,0.00017846,2]
[368940901,1751400641646,-460.0,0.00017847,2]
[368940902,1751400641656,-579.83,0.00017847,2]
[368940903,1751400641667,-460.0,0.00017847,2]
[368940904,1751400641676,-460.0,0.00018115,2]
[368940905,1751400641686,-460.0,0.00018115,2]
[368940906,1751400641696,-152.94,0.00018116,2]
[368940908,1751400641705,-460.0,0.00018116,2]
[368940910,1751400641714,-460.0,0.00018116,2]
[368940912,1751400641724,-460.0,0.00018117,2]
[368940914,1751400641733,-477.43,0.00018117,2]
[368940916,1751400641743,-460.0,0.00018117,2]
[368940918,1751400641752,-460.0,0.00018117,2]
[368940920,1751400641762,-275.56,0.00018117,2]
[368940922,1751400641770,-460.0,0.00018117,2]
[368940924,1751400641781,-255.3,0.00018118,2]
[368940926,1751400641790,-460.0,0.00018118,2]
[368940928,1751400641799,-420.46,0.00018118,2]
[368940930,1751400641808,-554.99,0.00018118,2]
[368940932,1751400641818,-447.69,0.00018118,2]
[368940934,1751400641827,-460.0,0.00018118,2]
[368940936,1751400641837,-164.06,0.00018118,2]
[368940938,1751400641846,-224.18,0.00018118,2]
[368940940,1751400641856,-460.0,0.0001812,2]
[368940942,1751400641870,-460.0,0.0001812,2]
[368940944,1751400641879,-977.5,0.0001812,2]
[368940957,1751400641991,-460.0,0.0001812,2]
[368940959,1751400642002,-203.1307375,0.00018121,2]
[368940962,1751400642012,-460.0,0.00018121,2]
[368940964,1751400642021,-283.5,0.00018121,2]
[368940966,1751400642031,-460.0,0.00018389,2]
[368940968,1751400642040,-460.0,0.00018389,2]
[368940970,1751400642051,-460.0,0.0001839,2]
[368940972,1751400642060,-460.0,0.0001839,2]
[368940974,1751400642070,-460.0,0.00018391,2]
[368940976,1751400642080,-477.43,0.00018391,2]
[368940978,1751400642089,-460.0,0.00018391,2]
[368940980,1751400642100,-460.0,0.00018391,2]
[368940983,1751400642110,-453.62,0.00018391,2]
[368940984,1751400642119,-460.0,0.00018392,2]
[368940987,1751400642129,-554.99,0.00018392,2]
[368940989,1751400642138,-490.96,0.00018392,2]
[368940991,1751400642147,-460.0,0.00018394,2]
[368940993,1751400642157,-460.0,0.00018394,2]
[368940995,1751400642168,-977.5,0.00018394,2]
[368940997,1751400642177,-460.0,0.00018394,2]
[368940999,1751400642187,-460.0,0.00018395,2]
[368941001,1751400642197,-460.0,0.00018663,2]
[368941003,1751400642206,-460.0,0.00018663,2]
[368941005,1751400642215,-460.0,0.00018664,2]
[368941007,1751400642224,-460.0,0.00018664,2]
[368941009,1751400642234,-460.0,0.00018665,2]
[368941011,1751400642243,-477.43,0.00018665,2]
[368941013,1751400642253,-460.0,0.00018665,2]
[368941015,1751400642262,-460.0,0.00018665,2]
[368941017,1751400642271,-408.6,0.00018666,2]
[368941019,1751400642281,-554.99,0.00018666,2]
[368941021,1751400642290,-460.0,0.00018668,2]
[368941023,1751400642299,-460.0,0.00018668,2]
[368941025,1751400642308,-977.5,0.00018668,2]
[368941027,1751400642318,-460.0,0.00018668,2]
[368941029,1751400642326,-215.01728679,0.00018729,2]
[368941031,1751400642336,-837.20943635,0.00018729,2]
[368941033,1751400642345,-160.0,0.00018729,2]
[368941035,1751400642354,-230.32585361,0.00018729,2]
[368941037,1751400642364,-160.0,0.00018729,2]
[368941040,1751400642376,-473.80922399,0.000189,2]
[368941042,1751400642385,-460.0,0.00018937,2]
[368941044,1751400642395,-460.0,0.00018937,2]
[368941046,1751400642404,-460.0,0.00018938,2]
[368941047,1751400642414,-460.0,0.00018938,2]
[368941049,1751400642423,-460.0,0.00018939,2]
[368941052,1751400642433,-477.43,0.00018939,2]
[368941054,1751400642443,-460.0,0.00018939,2]
[368941056,1751400642453,-395.56,0.00018939,2]
[368941058,1751400642462,-554.99,0.0001894,2]
[368941060,1751400642472,-460.0,0.00018942,2]
[368941062,1751400642481,-460.0,0.00018942,2]
[368941064,1751400642491,-977.5,0.00018942,2]
[368941066,1751400642500,-460.0,0.00018942,2]
[368941068,1751400642510,-473.80922375,0.00019141,2]
[368941070,1751400642520,-460.0,0.00019211,2]
[368941072,1751400642529,-460.0,0.00019211,2]
[368941074,1751400642539,-460.0,0.00019212,2]
[368941076,1751400642549,-460.0,0.00019212,2]
[368941078,1751400642558,-460.0,0.00019213,2]
[368941080,1751400642567,-477.43,0.00019213,2]
[368941082,1751400642577,-460.0,0.00019213,2]
[368941084,1751400642586,-554.99,0.00019214,2]
[368941086,1751400642595,-460.0,0.00019216,2]
[368941088,1751400642604,-460.0,0.00019216,2]
[368941090,1751400642613,-977.5,0.00019216,2]
[368941092,1751400642622,-288.11,0.00019216,2]
[368941094,1751400642631,-473.80922375,0.00019383,2]
[368941096,1751400642641,-460.0,0.00019485,2]
[368941098,1751400642652,-460.0,0.00019485,2]
[368941099,1751400642662,-460.0,0.00019486,2]
[368941102,1751400642671,-460.0,0.00019486,2]
[368941104,1751400642680,-460.0,0.00019487,2]
[368941105,1751400642690,-477.43,0.00019487,2]
[368941107,1751400642699,-460.0,0.00019487,2]
[368941109,1751400642709,-554.99,0.00019488,2]
[368941111,1751400642718,-460.0,0.0001949,2]
[368941113,1751400642728,-460.0,0.0001949,2]
[368941114,1751400642737,-977.5,0.0001949,2]
[368941115,1751400642747,-473.80922375,0.00019624,2]
[368941116,1751400642756,-460.0,0.00019759,2]
[368941117,1751400642766,-460.0,0.00019759,2]
[368941118,1751400642777,-460.0,0.0001976,2]
[368941119,1751400642787,-460.0,0.0001976,2]
[368941120,1751400642798,-460.0,0.00019761,2]
[368941121,1751400642808,-477.43,0.00019761,2]
[368941122,1751400642818,-460.0,0.00019761,2]
[368941123,1751400642828,-554.99,0.00019762,2]
[368941124,1751400642837,-460.0,0.00019764,2]
[368941126,1751400642846,-344.39659796,0.00019764,2]
[368941128,1751400642856,-977.5,0.00019764,2]
[368941129,1751400642867,-473.80922375,0.00019866,2]
[368941131,1751400642877,-460.0,0.00020033,2]
[368941132,1751400642887,-460.0,0.00020033,2]
[368941133,1751400642896,-460.0,0.00020034,2]
[368941134,1751400642906,-460.0,0.00020034,2]
[368941137,1751400642918,-460.0,0.00020035,2]
[368941138,1751400642926,-477.43,0.00020035,2]
[368941139,1751400642936,-584.02,0.00020035,2]
[368941140,1751400642948,-554.99,0.00020036,2]
[368941141,1751400642958,-225.45,0.00020038,2]
[368941142,1751400642967,-977.5,0.00020038,2]
[368941143,1751400642976,-473.80922375,0.00020107,2]
[368941144,1751400642986,-460.0,0.00020307,2]
[368941145,1751400642996,-460.0,0.00020308,2]
[368941146,1751400643005,-544.14350005,0.00020308,2]
[368941147,1751400643015,-460.0,0.00020309,2]
[368941149,1751400643024,-477.43,0.00020309,2]
[368941150,1751400643033,-554.99,0.0002031,2]
[368941151,1751400643042,-977.5,0.00020312,2]
[368941152,1751400643052,-473.80922375,0.00020348,3]
[368941154,1751400643061,-4430.0,0.000205,2]
[368941155,1751400643071,-460.0,0.00020581,2]
[368941156,1751400643081,-460.0,0.00020582,2]
[368941157,1751400643090,-350.59,0.00020583,2]
[368941158,1751400643100,-477.43,0.00020583,2]
[368941159,1751400643110,-554.99,0.00020584,2]
[368941160,1751400643119,-977.5,0.00020586,2]
[368941161,1751400643129,-473.80922375,0.0002059,3]
[368941162,1751400643139,-941.68,0.000206,2]
[368941163,1751400643148,-204.498,0.00020627,2]
[368941165,1751400643158,-473.80922375,0.00020831,4]
[368941167,1751400643168,-460.0,0.00020855,2]
[368941169,1751400643178,-214.05,0.00020856,2]
[368941171,1751400643187,-477.43,0.00020857,2]
[368941173,1751400643197,-554.99,0.00020858,2]
[368941174,1751400643206,-977.5,0.0002086,2]
[368941175,1751400643216,-164.173834,0.00020951,2]
[368941176,1751400643225,-473.80922375,0.00021072,4]
[368941178,1751400643235,-363.72,0.00021129,2]
[368941180,1751400643244,-477.43,0.00021131,2]
[368941182,1751400643254,-554.99,0.00021132,2]
[368941184,1751400643264,-977.5,0.00021134,2]
[368941186,1751400643273,-473.80922375,0.00021314,5]
[368941188,1751400643283,-477.43,0.00021405,2]
[368941190,1751400643292,-554.99,0.00021406,2]
[368941192,1751400643302,-977.5,0.00021408,2]
[368941194,1751400643311,-473.80922375,0.00021555,5]
[368941196,1751400643320,-477.43,0.00021679,2]
[368941198,1751400643329,-554.99,0.0002168,2]
[368941200,1751400643339,-977.5,0.00021682,2]
[368941202,1751400643348,-473.80922375,0.00021797,6]
[368941204,1751400643357,-477.43,0.00021953,2]
[368941206,1751400643367,-554.99,0.00021954,2]
[368941209,1751400643376,-977.5,0.00021956,2]
[368941210,1751400643386,-168.0,0.00022,2]
[368941213,1751400643396,-473.80922375,0.00022038,6]
[368941215,1751400643406,-4430.0,0.000222,2]
[368941217,1751400643416,-477.43,0.00022227,2]
[368941219,1751400643425,-554.99,0.00022228,2]
[368941221,1751400643434,-977.5,0.0002223,2]
[368941223,1751400643443,-449.96623909,0.0002226,2]
[368941225,1751400643452,-460.0,0.0002226,2]
[368941227,1751400643462,-385.54564694,0.0002226,2]
[368941229,1751400643472,-460.0,0.0002226,2]
[368941231,1751400643482,-460.0,0.0002226,2]
[368941233,1751400643491,-10456.19,0.000223,7]
[368941235,1751400643501,-1346.69,0.000223,7]
[368941237,1751400643510,-477.43,0.00022501,2]
[368941239,1751400643520,-554.99,0.00022502,2]
[368941241,1751400643528,-977.5,0.00022504,2]
[368941244,1751400643538,-473.80922375,0.00022521,7]
[368941247,1751400643547,-260.23287212,0.00022534,2]
[368941249,1751400643556,-714.12,0.000226,2]
[368941251,1751400643565,-707.24696546,0.00022675,2]
[368941254,1751400643575,-5000.0,0.00022731,2]
[368941257,1751400643584,-207.4,0.00022731,2]
[368941260,1751400643593,-473.80922375,0.00022762,7]
[368941262,1751400643603,-477.43,0.00022775,2]
[368941264,1751400643612,-554.99,0.00022776,2]
[368941266,1751400643622,-977.5,0.00022778,2]
[368941269,1751400643632,-2151.0,0.00022899,2]
[368941271,1751400643641,-646.0,0.00022899,2]
[368941273,1751400643650,-421.574,0.00022899,2]
[368941275,1751400643660,-473.80922375,0.00023003,8]
[368941277,1751400643669,-168.0,0.00023014,7]
[368941279,1751400643679,-477.43,0.00023049,2]
[368941281,1751400643689,-554.99,0.0002305,2]
[368941283,1751400643699,-977.5,0.00023052,2]
[368941285,1751400643708,-707.24696545,0.00023206,2]
[368941287,1751400643717,-473.80922375,0.00023245,8]
[368941289,1751400643726,-5000.0,0.00023279,2]
[368941291,1751400643736,-477.43,0.00023323,2]
[368941293,1751400643745,-554.99,0.00023324,2]
[368941295,1751400643755,-977.5,0.00023326,2]
[368941297,1751400643764,-473.80922375,0.00023486,9]
[368941299,1751400643774,-159.3450821,0.00023507,2]
[368941301,1751400643783,-574.3483066,0.00023507,2]
[368941303,1751400643792,-158.766034,0.00023507,2]
[368941305,1751400643801,-211.0,0.00023574,2]
[368941307,1751400643810,-477.45869031,0.00023596,2]
[368941310,1751400643819,-555.0,0.00023598,2]
[368941312,1751400643828,-977.5,0.000236,2]
[368941314,1751400643837,-159.3450821,0.00023678,2]
[368941315,1751400643846,-150.0,0.00023691,2]
[368941317,1751400643856,-966.0,0.00023691,2]
[368941320,1751400643867,-941.68,0.000237,7]
[368941322,1751400643877,-473.80922375,0.00023728,9]
[368941324,1751400643886,-707.24696545,0.00023738,2]
[368941326,1751400643896,-211.0,0.00023829,2]
[368941328,1751400643906,-175.72665235,0.00023918,2]
[368941330,1751400643916,-473.80922375,0.00023969,10]
[368941332,1751400643927,-44.75216341,0.00024,7]
[368941335,1751400643945,-115.24783659,0.00024,7]
[368941337,1751400643955,-837.20943635,0.00024,7]
[368941341,1751400643992,-524.61914904,0.00024,3]
[368941343,1751400644002,-524.61914904,0.00024,3]
[368941345,1751400644011,-160.0,0.00024,7]
[368941347,1751400644020,-230.32585361,0.00024,7]
[368941349,1751400644030,-215.01728679,0.00024,7]
[368941351,1751400644039,-215.0738,0.000241,2]
[368941353,1751400644049,-15617.70099205,0.00024106,2]
[368941355,1751400644059,-10456.19,0.000242,7]
[368941357,1751400644068,-1346.69,0.000242,7]
[368941359,1751400644077,-473.80922375,0.0002421,10]
[368941361,1751400644086,-175.72665235,0.00024219,2]
[368941363,1751400644096,-500.0,0.0002422,2]
[368941365,1751400644105,-707.24696545,0.00024269,2]
[368941367,1751400644114,-1735.299829,0.000243,2]
[368941369,1751400644124,-159.3450821,0.00024329,2]
[368941371,1751400644133,-575.5050994,0.00024329,2]
[368941373,1751400644142,-153.0,0.00024329,2]
[368941375,1751400644152,-153.3724206,0.00024329,2]
[368941377,1751400644161,-177.5971231,0.00024329,2]
[368941379,1751400644171,-179.22201206,0.00024329,2]
[368941381,1751400644180,-716.17116018,0.00024329,2]
[368941383,1751400644190,-526.7866717,0.00024329,2]